[Event "Szansa Chess Open 2022"]
[Site "Warsaw"]
[Date "2022.09.17"]
[Round "5"]
[White "Slomczewski, Michal"]
[Black "Klim, Filip"]
[Result "1-0"]
[ECO "B51"]
[WhiteElo "2108"]
[BlackElo "2011"]
[Annotator "TA"]
[PlyCount "47"]
[EventDate "2022.09.17"]
[EventCountry "POL"]
[SourceTitle "playchess.com"]
[Source "ChessBase"]
[SourceQuality "1"]
[TimeControl "900+10"]

{[%evp 9,47,-1,0,8,16,0,12,7,10,2,31,13,19,13,13,18,24,25,46,0,0,5,60,56,100,100,114,106,105,101,159,133,131,112,120,124,124,119,2277,2148]} 1. e4 {[%emt 0:00:05]} c5 {[%emt 0:00:01]} 2. Nf3 {[%emt 0:00:15]} d6 {[%emt 0:00:01]} 3. Bb5+ {[%emt 0:00:06]} Nd7 {[%emt 0:00:03]} 4. O-O {[%emt 0:00:17]} a6 {[%emt 0:00:00]} 5. Bc4 {[%emt 0:00:13]} e6 {[%emt 0:01:37]} 6. a4 {[%emt 0:00:01] B51: Sicilian: Moscow Variation (3 Bb5+) without 3...Bd7.} Ngf6 {[%emt 0:00:21]} 7. Re1 {[%emt 0:00:19]} Be7 {[%emt 0:00:22] [#]} 8. Bb3 $146 {[%emt 0:01:03] The position is equal.} ({Predecessor:} 8. a5 O-O 9. d3 b5 10. axb6 Nxb6 11. Ba2 a5 12. Nbd2 Bb7 13. h3 d5 14. e5 {1-0 (27) Przybylski,W (2321)-Fathy,E (2300) Chess.com INT 2022}) 8... O-O {[%emt 0:01:24]} 9. c3 {[%emt 0:00:01]} Rb8 {[%emt 0:01:00]} 10. d4 {[%emt 0:00:29]} b5 {[%emt 0:00:30]} 11. axb5 {[%emt 0:00:18]} axb5 {[%emt 0:00:02]} 12. e5 {[%emt 0:01:33]} Nd5 {[%emt 0:00:54]} 13. Bxd5 {[%emt 0:01:40]} exd5 {[%emt 0:00:02]} 14. dxc5 {[%emt 0:00:16]} (14. Bf4 $1 $14 {might be stronger.}) 14... Nxc5 $11 {[%emt 0:04:24]} 15. Bf4 {[%emt 0:00:10]} Bb7 {[%emt 0:00:19]} (15... b4 $11) 16. Nd4 $14 {[%emt 0:00:34]} dxe5 {[%emt 0:01:42]} 17. Bxe5 {[%emt 0:00:15]} Bd6 {[%emt 0:00:20]} 18. Bxd6 {[%emt 0:03:55] White is much more active. The black rooks are badly placed.} ({Reject} 18. Nxb5 $6 Bxe5 19. Rxe5 Ne4 $11) 18... Qxd6 {[%emt 0:00:02]} 19. Na3 {[%emt 0:00:01] Pair of Knights!} ({Much weaker is} 19. Nxb5 $6 Qg6 $11) 19... Qd7 {[%emt 0:01:51]} (19... b4 $142) 20. Nac2 {[%emt 0:01:09]} Rfe8 {[%emt 0:00:20]} 21. Qf3 {[%emt 0:00:48]} Re4 {[%emt 0:00:20]} 22. Rxe4 {[%emt 0:00:49]} dxe4 {[%emt 0:00:07] [#]} 23. Qg3 {[%emt 0:00:01]} Ra8 {[%emt 0:00:09][%mdl 8192]} (23... Rf8 $16) 24. Rxa8+ {[%emt 0:00:07] Weighted Error Value: White=0.08 (flawless) /Black=0.20 (precise)} 1-0

[Event "Szansa Chess Open 2022"]
[Site "Warsaw"]
[Date "2022.09.17"]
[Round "5"]
[White "Omar, Ahmed"]
[Black "Rak, Maciej"]
[Result "0-1"]
[ECO "B20"]
[WhiteElo "2064"]
[BlackElo "1866"]
[Annotator "TA"]
[PlyCount "60"]
[EventDate "2022.09.17"]
[EventCountry "POL"]
[SourceTitle "playchess.com"]
[Source "ChessBase"]
[SourceQuality "1"]
[TimeControl "900+10"]

{[%evp 9,60,-8,0,0,8,14,7,0,16,-60,-60,-59,-21,-35,-35,-57,-56,-58,-58,-68,-71,-72,-64,-191,-65,-177,-164,-595,-569,-1408,-1418,-5313,-5397,-1373,57,46,29997,-395,0,-253,0,0,0,0,0,-29986,-29987,-29988,-29989,-29989,-29990,-29991,-29992]} 1. e4 {[%emt 0:01:10]} c5 {[%emt 0:00:01]} 2. b4 {[%emt 0:00:02]} cxb4 {[%emt 0:00:09]} 3. d4 {[%emt 0:00:00]} d5 {[%emt 0:00:28]} 4. exd5 {[%emt 0:00:01]} Qxd5 {[%emt 0:00:02]} 5. c4 {[%emt 0:00:01]} Qe4+ {[%emt 0:01:37]} 6. Be3 {[%emt 0:00:21] [#] B20: Sicilian: Unusual White 2nd moves.} Bf5 $146 {[%emt 0:03:09]} ({Predecessor:} 6... e6 7. Nf3 Nf6 8. Bd3 Qc6 9. O-O Nbd7 10. Nbd2 a5 11. Qc2 Be7 12. Ne4 b6 {1-0 (34) Sadiku,Y (1810)-Qorri,F (1988) Pristina 2022}) 7. Qa4+ {[%emt 0:00:51]} Qc6 {[%emt 0:00:28]} 8. Qxb4 {[%emt 0:00:04] The position is equal.} e5 {[%emt 0:00:23]} (8... e6 $5 {[%cal Rf8b4]} 9. Qb3 Nd7 $11) 9. Qb3 {[%emt 0:00:26]} (9. c5 $1 $11 a6 10. Nf3 (10. dxe5 Nd7 $11)) 9... exd4 $15 {[%emt 0:00:29]} 10. Bxd4 {[%emt 0:00:02]} Na6 {[%emt 0:01:05]} 11. Nf3 {[%emt 0:01:36]} O-O-O {[%emt 0:02:52] White must now prevent ...Bc5.} 12. Nc3 {[%emt 0:00:37]} Nf6 {[%emt 0:02:54] ...Nb4 is the strong threat.} 13. Be2 {[%emt 0:00:24]} Nc5 {[%emt 0:00:52]} 14. Bxc5 {[%emt 0:00:25]} Bxc5 {[%emt 0:00:02]} 15. O-O {[%emt 0:00:10]} Rhe8 {[%emt 0:00:12] Black has more active pieces. The white rooks are badly placed.} 16. Nh4 {[%emt 0:02:25]} (16. Rad1 $15) 16... Bg4 {[%emt 0:00:23]} ({Better is} 16... Bd3 $19 17. Bxd3 Rxd3) 17. Bxg4+ {[%emt 0:00:10]} (17. Nf3 $15) 17... Nxg4 $19 {[%emt 0:00:02]} 18. Nf3 $2 {[%emt 0:01:38]} (18. Nd1) 18... Rd3 {[%emt 0:01:12]} 19. Qc2 {[%emt 0:01:01]} Rxf3 {[%emt 0:01:40]} 20. gxf3 {[%emt 0:00:09]} Qxf3 {[%emt 0:00:17]} 21. Rad1 {[%emt 0:01:23] Inhibits Bd6.} Qh3 $2 {[%emt 0:00:12]} (21... Qf4 $19 {[%csl Gg4][%cal Rf4h2]} 22. Qxh7 Bxf2+ 23. Rxf2 Qxf2+ 24. Kh1 Re1+ 25. Rxe1 Qxe1+ 26. Kg2 Qf2+ 27. Kh3 Qxh2+ 28. Kxg4 Qxh7) 22. Qf5+ $14 {[%emt 0:00:09]} Re6 $2 {[%emt 0:00:04][%mdl 8192]} (22... Kb8 $14 23. Qf4+ Ne5) 23. Qf4 $4 {[%emt 0:00:12][%mdl 8192] [#]} (23. Qxc5+ {mates} Rc6 24. Qf8+ Kc7 25. Qd8#) 23... Rf6 $2 {[%emt 0:00:12] Chess con chili.} ({Weaker is} 23... Nxh2 24. Rd8+ Kxd8 25. Qb8+ Kd7 26. Qxb7+ Kd8 27. Qb8+ Kd7 28. Qb7+ Kd8 29. Qb8+ Kd7 30. Qb7+ $11) ({Black should try} 23... Ne5 $1 $19 {( -> ...Rg6+)} 24. Kh1 Qxc3) 24. Qg3 $2 {[%emt 0:00:45][%mdl 8192]} (24. Rd8+ $1 $11 {and White stays safe.} Kxd8 25. Qb8+ Kd7 26. Qxb7+ Kd8 27. Qb8+ Kd7 28. Qb7+ Kd8 29. Qb8+ Kd7 30. Qb7+) 24... Rxf2 $2 $40 {[%emt 0:00:12][%mdl 128] Black is up to no good.} 25. Rd8+ $1 $11 {[%emt 0:05:02][%mdl 64] Decoy} Kxd8 {[%emt 0:00:00][%csl Gh3][%cal Rf2f1,Bc8d8,Bd8e7,Be7e6,Be6f5,Bf5e4,Be4d3][%mdl 32]} 26. Qb8+ {[%emt 0:00:02]} Ke7 {[%emt 0:00:15][%csl Gh3][%cal Rf2f1]} 27. Nd5+ $2 {[%emt 0:00:04][%mdl 8192] [#]} (27. Qxb7+ $11 Kd8 28. Qd5+ Ke8 29. Qc6+ Kd8 30. Qd5+ Ke8 31. Qc6+ Kd8 32. Qd5+) 27... Ke6 {[%emt 0:00:09][%csl Gh3][%cal Rf2f1] Black mates.} 28. Qe8+ {[%emt 0:00:27]} Kf5 $1 {[%emt 0:00:06][%csl Gh3][%cal Rf2f1]} 29. Qxf7+ {[%emt 0:00:03]} Ke4 {[%emt 0:00:20][%csl Gf2][%cal Rh3f1]} 30. Qe6+ {[%emt 0:00:16]} Kd3 {[%emt 0:00:10] Black used his chance.  Weighted Error Value: White=1.05/Black=0.95} 0-1

[Event "Szansa Chess Open 2022"]
[Site "Warsaw"]
[Date "2022.09.17"]
[Round "5"]
[White "Pires, Emanuel Joao Robarts"]
[Black "Polak, Michal"]
[Result "0-1"]
[ECO "A00"]
[WhiteElo "1999"]
[BlackElo "1954"]
[Annotator "TA"]
[PlyCount "117"]
[EventDate "2022.09.17"]
[EventCountry "POL"]
[SourceTitle "playchess.com"]
[Source "ChessBase"]
[SourceQuality "1"]
[TimeControl "900+10"]

{[%evp 9,117,-210,-133,-401,-394,-389,-417,-400,-168,-177,-83,-93,-83,-90,-84,-99,-64,-68,-62,-59,-61,-83,-62,-107,-52,-89,-35,-109,-54,-116,-100,-103,-9,-11,-10,-30,-20,-61,-52,-97,-101,-106,-81,-90,-84,-85,0,0,0,0,0,-99,-104,-117,-129,-135,67,-129,237,252,375,246,378,358,359,369,380,368,360,345,627,615,611,601,1206,1197,1033,964,879,864,855,572,546,-484,-475,-483,-465,-449,-436,-1030,-1014,-984,-1134,-588,-588,-4662,-618,-2136,-1562,-29967,-29967,-29966,-12047,-7390,-4765,-29978,-29980,-29980,-29980,-29978]} 1. e3 {[%emt 0:00:03]} e5 {[%emt 0:00:04]} 2. f4 {[%emt 0:00:09]} exf4 {[%emt 0:00:12]} 3. Nc3 {[%emt 0:00:04]} ({Predecessor:} 3. exf4 Nf6 4. Nf3 d5 5. d4 Bd6 6. Bd3 O-O 7. O-O Nc6 8. c3 Ne7 9. Qc2 Ng6 10. Ne5 c5 11. Be3 c4 12. Be2 Ne4 13. Bxc4 dxc4 14. Qxe4 {½-½ (47) Akbaev,K (2475)-Skatchkov,P (2486) Khanty-Mansiysk 2013}) 3... fxe3 {[%emt 0:00:19]} 4. b3 {[%emt 0:00:02]} d5 {[%emt 0:00:19][%cal Bd7d5,Bd5d4][%mdl 32]} 5. Bb2 {[%emt 0:00:05]} d4 {[%emt 0:00:42]} 6. Ne4 {[%emt 0:00:21][%mdl 8192] A00: Irregular Openings.} (6. Nb5 $17) 6... Qh4+ $19 {[%emt 0:00:13]} 7. Ng3 {[%emt 0:00:02]} Bd6 {[%emt 0:00:20]} 8. Qf3 {[%emt 0:02:15] Black is winning.} Bxg3+ {[%emt 0:05:51]} (8... Bg4 $142 9. Qe4+ Ne7) 9. Qxg3 {[%emt 0:00:13]} Qxg3+ {[%emt 0:00:13]} (9... exd2+ $19 10. Kd1 Qh6 11. Qe5+ Ne7 12. Qxd4 O-O 13. Qxd2 Qh5+ 14. Kc1 Nbc6) 10. hxg3 $17 {[%emt 0:00:02]} exd2+ {[%emt 0:00:04]} 11. Kxd2 {[%emt 0:00:02]} c5 {[%emt 0:00:07]} 12. Nf3 {[%emt 0:00:20]} Nf6 {[%emt 0:00:06]} 13. Re1+ {[%emt 0:00:03]} Be6 {[%emt 0:02:04] Hoping for ...0-0.} 14. b4 {[%emt 0:01:11]} Nc6 {[%emt 0:00:48]} 15. bxc5 {[%emt 0:00:29]} O-O-O {[%emt 0:00:04]} 16. a3 {[%emt 0:01:33]} h6 {[%emt 0:01:46]} (16... Bf5 $17 {White must now prevent ...Rd5.} 17. Ng5 (17. Bd3 Rd5 $17) 17... Rd7) 17. Kc1 {[%emt 0:01:19]} Rhe8 {[%emt 0:00:59]} (17... a6 $17 18. Rh4 Bg4) 18. Rh4 {[%emt 0:00:39]} (18. Bb5 $15) 18... Rd5 {[%emt 0:01:11]} ({Black should play} 18... Bg4 $17 {And now ...Bxf3 would win.} 19. Rxe8 Rxe8) 19. Bd3 {[%emt 0:01:01]} (19. Nxd4 $15 Nxd4 20. Bxd4) 19... Rxc5 {[%emt 0:00:28]} 20. Nxd4 {[%emt 0:00:05]} Rg5 {[%emt 0:00:56]} (20... Bd7 $17 21. Rxe8+ Nxe8 22. Nxc6 Bxc6) 21. Nxc6 $11 {[%emt 0:01:39]} bxc6 {[%emt 0:00:03]} 22. Ra4 {[%emt 0:01:15]} Re7 {[%emt 0:00:46]} ({Don't take} 22... Rxg3 23. Be5 Rxg2 24. Rxa7 $16) 23. Ba6+ {[%emt 0:00:21]} Kd8 {[%emt 0:00:25]} 24. Rb4 {[%emt 0:00:33]} Nd7 {[%emt 0:00:46] Prevents Be5.} (24... Rxg3 $2 25. Rb8+ Bc8 26. Rxc8+ Kd7 27. Rd1+ Nd5 28. c4 $18) 25. Rd1 {[%emt 0:00:41] [#]} Ke8 $1 {[%emt 0:00:03]} 26. Rb7 {[%emt 0:00:15]} Rxg3 {[%emt 0:00:14]} 27. Be5 {[%emt 0:00:54]} Rxg2 {[%emt 0:00:08]} (27... Rxa3 $17 28. Rxa7 f6) 28. Rxa7 {[%emt 0:00:42] Ra8+ would kill now.} f6 $1 {[%emt 0:00:17]} 29. Bd6 {[%emt 0:00:11] This bishop pair is nice.} Bf5 $1 {[%emt 0:00:11]} ({Don't play} 29... Bg4 30. Bxe7 Bxd1 31. Kxd1 $16) 30. Bd3 {[%emt 0:02:12]} (30. Ra8+ $11 {remains equal.} Kf7 31. Bxe7 Rxc2+ 32. Kb1 Re2+ 33. Kc1 Rxe7 34. Bc4+ Kg6 35. Rg1+ Kh5 36. Ra5) 30... Bxd3 $17 {[%emt 0:00:07]} 31. Rxd3 {[%emt 0:00:20]} Ree2 {[%emt 0:00:04]} 32. Rc3 {[%emt 0:00:31]} Rg1+ {[%emt 0:00:28]} 33. Kb2 {[%emt 0:00:05]} Re6 $2 {[%emt 0:00:10][%mdl 8192]} (33... c5 $1 $17 {keeps the pressure on.} 34. a4 Rd1 35. Bxc5 Nxc5 36. Rxc5 Re7) 34. Rxc6 $18 {[%emt 0:00:12]} Rd1 {[%emt 0:00:03]} (34... Ree1 $142 35. Rc8+ Kf7) 35. Rc8+ {[%emt 0:00:29][%mdl 64] [#] Deflection} Kf7 {[%emt 0:00:02]} 36. Rxd7+ {[%emt 0:00:06]} Kg6 {[%emt 0:00:03]} 37. Rcd8 {[%emt 0:00:13]} h5 {[%emt 0:00:28]} 38. a4 {[%emt 0:00:03][%cal Ba3a4,Ba4a5,Ba5a6,Ba6a7][%mdl 32]} h4 {[%emt 0:00:07]} 39. a5 {[%emt 0:00:01]} Rd5 $2 {[%emt 0:00:13]} (39... h3 40. Bh2 Rxd7 41. Rxd7 Ra6) 40. a6 {[%emt 0:00:31] aiming for a7.} Rb5+ {[%emt 0:00:01]} 41. Kc3 {[%emt 0:00:07] Threatens to win with a7.} Re3+ {[%emt 0:00:17]} 42. Kd4 {[%emt 0:00:19] Threatening mate with a7.} Re2 {[%emt 0:00:14]} 43. c4 {[%emt 0:00:02]} Ra5 {[%emt 0:00:07]} 44. a7 {[%emt 0:00:03]} Rea2 {[%emt 0:00:04]} 45. Bb8 {[%emt 0:00:07]} h3 46. Rg8 $4 {[%emt 0:00:15][%mdl 8192]} (46. Rd5 $18 {and life is good for White.} R5a4 47. Rh8) 46... Rd2+ $19 {[%emt 0:00:09][%mdl 64] Skewer} 47. Kc3 {[%emt 0:00:37]} Rxd7 {[%emt 0:00:01][%mdl 4096] Endgame KRR-KRB} 48. Rh8 {[%emt 0:00:04]} Kf5 {[%emt 0:00:27]} ({Weaker is} 48... Ra3+ 49. Kb4 Rdd3 50. c5 $11) 49. Kb4 {[%emt 0:00:02]} (49. Rxh3 $142 Rdxa7 50. Kb4 Ra4+ 51. Kc5) 49... Raxa7 {[%emt 0:00:14]} 50. Bxa7 {[%emt 0:00:02]} Rxa7 {[%emt 0:00:01]} 51. Rxh3 {[%emt 0:00:02] KR-KR} Kg4 {[%emt 0:00:04]} 52. Rh8 {[%emt 0:00:37]} g5 {[%emt 0:00:07]} (52... f5 $142 53. Rf8 f4) 53. c5 {[%emt 0:00:17]} f5 {[%emt 0:00:03][%cal Bf6f5,Bf5f4,Bf4f3,Bf3f2][%mdl 32]} 54. c6 {[%emt 0:00:07]} f4 {[%emt 0:00:18]} 55. Kc5 {[%emt 0:00:07]} f3 {[%emt 0:00:08]} 56. Rf8 {[%emt 0:00:06]} Kg3 {[%emt 0:00:10] ( -> ...f2)} 57. Kd4 {[%emt 0:00:17]} f2 {[%emt 0:00:22]} 58. Ke3 {[%emt 0:00:13]} Re7+ {[%emt 0:00:01]} 59. Kd4 {[%emt 0:00:24] What a bad dream for White.  Weighted Error Value: White=0.30/Black=0.55} 0-1

[Event "Szansa Chess Open 2022"]
[Site "Warsaw"]
[Date "2022.09.17"]
[Round "5"]
[White "Moscicka, Pola"]
[Black "Jarocka, Liwia"]
[Result "0-1"]
[ECO "D43"]
[WhiteElo "1958"]
[BlackElo "2131"]
[Annotator "TA"]
[PlyCount "78"]
[EventDate "2022.09.17"]
[EventCountry "POL"]
[SourceTitle "playchess.com"]
[Source "ChessBase"]
[SourceQuality "1"]
[TimeControl "900+10"]

{[%evp 13,78,0,9,13,6,13,-12,-18,-29,-17,-29,-67,-46,-68,-65,-69,-45,-75,-80,-114,-106,-128,-139,-139,-87,-154,-152,-328,-315,-402,-413,-410,-408,-416,-416,-422,-420,-597,-592,-718,-711,-605,-597,-655,-637,-657,-649,-629,-623,-631,-619,-722,-717,-698,-682,-891,-871,-1248,-1208,-1171,-1138,-1332,-1316,-1893,-1787,-6115,-4354]} 1. d4 {[%emt 0:00:02]} d5 {[%emt 0:00:01]} 2. c4 {[%emt 0:00:02]} c6 {[%emt 0:00:01]} 3. Nf3 {[%emt 0:00:06]} Nf6 {[%emt 0:00:01]} 4. Nc3 {[%emt 0:00:04]} e6 {[%emt 0:00:02]} 5. Qd3 {[%emt 0:00:16]} dxc4 {[%emt 0:00:04]} 6. Qxc4 {[%emt 0:00:02]} b5 {[%emt 0:00:02]} 7. Qd3 {[%emt 0:00:15]} a6 {[%emt 0:00:07]} 8. e4 {[%emt 0:01:03] 8.g4 might become the main line. D43: Semi-Slav: 5 Bg5 h6.} Bb7 {[%emt 0:00:05]} 9. Be2 {[%emt 0:00:41]} c5 {[%emt 0:00:43] [#]} 10. dxc5 $146 {[%emt 0:02:41] Black must now prevent Qxd8+. The position is equal.} ({Predecessor:} 10. e5 cxd4 11. exf6 dxc3 12. Qxd8+ Kxd8 13. Bg5 Ke8 14. bxc3 Nd7 15. fxg7 Bxg7 16. Rc1 {0-1 (30) Papay,M (1939)-Krumm,J (2038) Teplice 2012}) 10... Qxd3 {[%emt 0:00:06]} 11. Bxd3 {[%emt 0:00:02]} Bxc5 {[%emt 0:00:04]} 12. a3 {[%emt 0:00:38]} Nbd7 {[%emt 0:01:07]} 13. O-O {[%emt 0:00:03]} O-O {[%emt 0:00:23]} 14. Bf4 {[%emt 0:00:14]} Rac8 {[%emt 0:00:26]} 15. Rac1 {[%emt 0:00:48]} h6 {[%emt 0:00:12]} 16. Nd2 {[%emt 0:01:11]} Nh5 {[%emt 0:01:05]} 17. Bg3 {[%emt 0:02:17]} Nxg3 {[%emt 0:01:13] Black is more active.} 18. hxg3 {[%emt 0:00:02]} Rc7 {[%emt 0:00:58]} (18... Nf6 $142 {Hoping for ...Rfd8.} 19. Nb3 Bb6) 19. Nf3 {[%emt 0:02:51]} (19. Nb3 $142) 19... Rfc8 {[%emt 0:00:18][%cal Oc5a3]} 20. g4 $2 {[%emt 0:02:13] [#] This costs White the game.} (20. Rcd1 $17) 20... Bxa3 $1 $19 {[%emt 0:00:17][%mdl 512] A strong pair of Bishops.} 21. Nxb5 {[%emt 0:02:11]} (21. Rb1 Bb4) 21... Rxc1 {[%emt 0:00:11]} 22. Nxa3 {[%emt 0:00:03]} Rxf1+ {[%emt 0:00:06]} 23. Kxf1 {[%emt 0:00:06]} Nc5 {[%emt 0:00:02][%csl LRd3,LRe4]} 24. Ke2 {[%emt 0:00:17]} Bxe4 {[%emt 0:00:15]} 25. Bc4 {[%emt 0:00:26]} (25. Bxe4 {was called for.} Nxe4 26. Ne5) 25... Rb8 {[%emt 0:00:26] Black is clearly winning.} 26. Ke3 {[%emt 0:00:34]} Bxf3 {[%emt 0:00:29]} 27. gxf3 {[%emt 0:00:08][%mdl 4096] Endgame KRN-KBN} e5 {[%emt 0:01:02][%cal Be6e5,Be5f4][%mdl 32]} 28. f4 {[%emt 0:00:10]} exf4+ {[%emt 0:00:05]} 29. Kd4 {[%emt 0:00:02]} Ne6+ {[%emt 0:00:11]} 30. Kc3 {[%emt 0:00:20]} a5 {[%emt 0:00:01]} 31. Nb5 {[%emt 0:00:05]} Kf8 {[%emt 0:00:31]} 32. Nd6 {[%emt 0:00:16]} g6 {[%emt 0:00:21]} 33. Ne4 {[%emt 0:00:09]} Ke7 {[%emt 0:00:19]} 34. b3 {[%emt 0:00:08]} h5 {[%emt 0:00:16][%cal Bh6h5,Bh5h4][%mdl 32]} 35. g5 {[%emt 0:00:12]} h4 {[%emt 0:00:15] Threatens to win with ...h3.} 36. Bf1 {[%emt 0:00:07]} Rc8+ {[%emt 0:00:56]} 37. Kb2 {[%emt 0:00:12]} Rd8 {[%emt 0:00:16] [#] ...f3 is the strong threat.} 38. Kc2 {[%emt 0:00:12]} f3 {[%emt 0:00:48]} 39. Bh3 {[%emt 0:00:09]} Rd4 {[%emt 0:00:07] Weighted Error Value: White=0.47/Black=0.04 (flawless)} 0-1